bitfinex/quotes_ETHUSD_20250724
["timestamp","ask_amount","ask_price","bid_price","bid_amount"]
[1753345979907,0.04,3633.9,3633.8,2.75194011]
[1753345979908,1e-08,3633.9,3633.8,2.75194011]
[1753345980106,1e-08,3633.9,3633.8,24.29880751]
[1753345980414,1e-08,3633.9,3633.8,15.64361511]
[1753345981113,1e-08,3633.9,3633.8,14.40581011]
[1753345981521,1e-08,3633.9,3633.8,10.62524011]
[1753345981917,0.8292,3635.4,3634.8,2.751183]
[1753345982218,1.2747,3636.0,3634.8,24.762814]
[1753345982376,1.2747,3636.0,3635.8,2.75042631]
[1753345982580,1.2747,3636.0,3635.8,7.03142631]
[1753345982801,0.8016,3636.0,3635.8,4.4186]
[1753345983006,0.47310001,3635.9,3635.8,4.4186]
[1753345984124,1e-08,3635.9,3635.8,4.4186]
[1753345984533,3.6259386,3635.9,3635.8,4.4186]
[1753345988036,0.87558794,3635.9,3635.8,4.4186]
[1753345988200,0.87392594,3635.9,3635.8,4.4186]
[1753345988401,2.75010439,3636.3,3635.8,4.62537783]
[1753345988597,2.75003586,3636.4,3636.1,0.1376]
[1753345988798,3.55592375,3636.2,3636.1,0.1376]
[1753345989070,3.55592375,3636.2,3636.1,4.4166]
[1753345990196,4.00382375,3636.2,3636.1,4.4166]
[1753345990422,4.67920971,3636.2,3636.1,4.4166]
[1753345990630,4.00382375,3636.2,3636.1,4.4166]
[1753345991425,0.8058,3636.2,3636.1,4.4166]
[1753345992211,0.8331,3636.6,3636.1,4.4166]
[1753345992413,0.8388,3636.9,3636.5,0.1376]
[1753345992610,0.04,3636.9,3636.6,4.278]
[1753345992920,0.04,3636.9,3636.8,0.1376]
[1753345994233,0.04,3636.9,3636.8,5.88727003]
[1753345994435,0.04,3636.9,3636.8,6.35037003]
[1753345995536,0.04,3636.9,3636.8,7.11197003]
[1753345995761,0.04,3636.9,3636.8,19.09262903]
[1753345996037,0.04,3636.9,3636.8,6.51127003]
[1753345996234,0.04,3636.9,3636.8,8.0386]
[1753345996535,0.04,3636.9,3636.8,11.25137003]
[1753345996754,0.04,3636.9,3636.8,31.08089094]
[1753345996965,0.04,3637.9,3637.8,3.50541417]
[1753345997119,0.04,3637.9,3637.8,10.78241417]
[1753345997319,0.04,3637.9,3637.8,11.24551417]
[1753345999624,0.04,3637.9,3637.8,7.276]
[1753346003448,0.04,3637.9,3637.8,7.48047269]
[1753346003650,3.23673861,3637.9,3637.8,0.20447269]
[1753346003955,2.74910325,3637.6,3636.9,3.0]
[1753346004264,2.74910325,3637.6,3636.7,3.7997]
[1753346004265,2.74922857,3637.4,3637.1,3.0]
[1753346004558,2.74921647,3637.4,3637.3,3.0]
[1753346004719,2.74934232,3637.3,3634.3,0.1]
[1753346004920,2.74934232,3637.3,3636.5,2.74989179]
[1753346004921,0.4479,3637.2,3636.5,2.74989179]
[1753346005120,0.4479,3637.2,3636.6,3.0]
[1753346005377,0.4479,3637.2,3636.8,3.0]
[1753346005581,0.4479,3637.2,3636.6,2.9552339]
[1753346005582,0.4479,3637.2,3636.9,4.274]
[1753346005872,0.4479,3637.2,3637.1,0.1376]
[1753346006161,2.74921927,3637.4,3637.2,3.0]
[1753346006334,2.74921927,3637.4,3637.3,7.274]
[1753346006525,0.7782,3637.5,3637.4,3.0]
[1753346006726,0.04,3637.9,3637.4,0.7571]
[1753346006921,0.04,3637.9,3637.8,2.88651417]
[1753346007161,0.04,3637.9,3637.8,10.18800331]
[1753346007330,0.04,3637.9,3637.8,10.94341417]
[1753346007525,0.04,3637.9,3637.8,11.40651417]
[1753346009157,0.04,3637.9,3637.8,10.16051417]
[1753346009355,0.04,3637.9,3637.8,3.1376]
[1753346009564,0.04,3637.9,3637.8,7.4116]
[1753346009780,0.4879,3637.9,3637.8,7.4116]
[1753346010697,0.04,3637.9,3637.8,7.4116]
[1753346011194,0.04,3637.9,3637.8,10.16051417]
[1753346011400,0.04,3637.9,3637.8,7.4116]
[1753346014501,0.04,3637.9,3637.8,11.43731417]
[1753346015496,0.04,3637.9,3637.8,13.96131417]
[1753346015697,0.04,3637.9,3637.8,11.43731417]
[1753346017600,0.004,3638.2,3638.1,2.7486875]
[1753346017777,0.004,3638.2,3638.1,10.1582875]
[1753346017978,0.004,3638.2,3638.1,10.6313875]
[1753346018675,0.004,3638.2,3638.1,10.1582875]
[1753346019073,0.004,3638.2,3638.1,10.6313875]
[1753346019590,0.004,3638.2,3638.1,10.1582875]
[1753346019771,0.004,3638.2,3638.1,7.4086]
[1753346020902,0.4379,3638.2,3638.1,7.4086]
[1753346021195,0.4379,3638.2,3638.1,12.11859999]
[1753346021618,0.004,3638.2,3638.1,12.11859999]
[1753346022271,0.004,3638.2,3638.1,14.86728749]
[1753346022595,0.004,3638.2,3638.1,15.34038749]
[1753346022896,0.004,3638.2,3638.1,14.86728749]
[1753346024882,0.004,3638.2,3638.1,7.84759999]
[1753346025106,0.4379,3638.2,3638.1,12.11859999]
[1753346025592,0.4379,3638.2,3638.1,7.84759999]
[1753346025798,0.4379,3638.2,3638.1,12.11859999]
[1753346026627,0.004,3638.2,3638.1,12.11859999]
[1753346027139,2.75261195,3638.2,3638.1,0.1376]
[1753346027292,0.4379,3638.2,3638.1,4.4086]
[1753346027492,0.4379,3638.2,3638.1,0.1376]
[1753346027790,0.4379,3638.2,3638.1,4.4086]
[1753346028004,0.4379,3638.2,3638.1,7.4086]
[1753346029002,0.004,3638.2,3638.1,7.4086]
[1753346029201,0.004,3638.2,3638.1,10.1572875]
[1753346029400,0.004,3638.2,3638.1,10.6303875]
[1753346029601,0.004,3638.2,3638.1,26.2714495]
[1753346029808,0.004,3638.2,3638.1,22.8830495]
[1753346030026,1e-08,3638.2,3638.1,22.8830495]
[1753346030231,1e-08,3638.2,3638.1,16.1785195]
[1753346030435,1e-08,3638.2,3638.1,13.5542895]
[1753346031328,1e-08,3638.2,3638.1,11.4190875]
[1753346031608,1e-08,3638.2,3638.1,15.3294665]
[1753346032002,1e-08,3638.2,3638.1,13.6764665]
[1753346032604,1e-08,3638.9,3638.8,2.74815873]
[1753346032805,1e-08,3638.9,3638.8,30.11140331]
[1753346033021,1e-08,3638.9,3638.8,30.69462173]
[1753346033237,1e-08,3638.9,3638.8,21.52477773]
[1753346034256,1e-08,3638.9,3638.8,21.66506829]
[1753346034668,1e-08,3638.9,3638.8,21.87207163]
[1753346035068,1e-08,3638.9,3638.8,18.95435563]
[1753346035368,1e-08,3638.9,3638.8,14.33876563]
[1753346035571,1e-08,3638.9,3638.8,11.73395263]
[1753346038331,1e-08,3638.9,3638.8,15.81801063]
[1753346039247,0.002,3639.7,3639.1,15.26665618]
[1753346039447,0.002,3639.7,3639.6,5.88515467]
[1753346039647,0.002,3639.7,3639.6,10.15415467]
[1753346039947,0.002,3639.7,3639.6,10.62725467]
[1753346041468,0.002,3639.7,3639.6,10.15415467]
[1753346042746,0.002,3639.7,3639.6,5.88515467]
[1753346042994,1.2529,3639.7,3639.6,7.4056]
[1753346043458,1.2529,3639.7,3639.6,0.1376]
[1753346043640,1.2529,3639.7,3639.6,4.4056]
[1753346044985,4.00037918,3639.7,3639.6,4.4056]
[1753346045180,4.7099107,3639.7,3639.6,7.4056]
[1753346045881,4.7099107,3639.7,3639.6,4.4056]
[1753346046180,4.68231062,3639.7,3639.6,4.4056]
[1753346046382,1.93483144,3639.7,3639.6,4.4056]
[1753346046790,0.819,3639.7,3639.6,7.4056]
[1753346047360,1.2483,3639.7,3639.6,7.4056]
[1753346047994,3.99577918,3639.7,3639.6,7.4056]
[1753346048597,0.8126,3639.2,3639.1,3.0]
[1753346048800,0.8126,3639.2,3639.1,7.268]
[1753346049012,3.98975667,3639.2,3639.1,7.4056]
[1753346049512,3.98975667,3639.2,3639.1,7.268]
[1753346049920,4.66350351,3639.2,3639.1,4.268]
[1753346050079,4.65040351,3639.2,3639.1,4.268]
[1753346050692,4.78800351,3639.2,3639.1,4.268]
[1753346050924,2.74815873,3638.8,3638.7,0.1376]
[1753346051071,2.74815873,3638.8,3638.7,4.4056]
[1753346051072,3.54625873,3638.8,3638.7,4.4056]
[1753346051276,4.00315881,3638.8,3638.7,4.268]
[1753346051717,4.95307515,3638.8,3638.7,4.268]
[1753346052504,4.92547507,3638.8,3638.7,4.268]
[1753346052713,4.92547507,3638.8,3637.7,6.599]
[1753346052714,0.7989,3638.0,3637.7,6.599]
[1753346052910,2.74891417,3637.8,3637.7,6.599]
[1753346053080,0.4293,3637.8,3637.7,0.20737478]
[1753346053284,3.54767474,3638.0,3637.8,3.0]
[1753346053612,3.54767474,3638.0,3637.9,4.268]
[1753346053777,3.54767474,3638.0,3637.9,4.269]
[1753346053973,3.97697474,3638.0,3637.9,4.269]
[1753346054410,4.64953493,3638.0,3637.9,4.269]
[1753346059520,4.64953493,3638.0,3637.9,0.001]
[1753346060696,2.74936764,3637.2,3637.1,0.1376]
[1753346060898,2.74936764,3637.2,3637.1,4.269]
[1753346060899,3.56826764,3637.2,3637.1,4.269]
[1753346061112,4.64308264,3637.2,3637.1,4.269]
[1753346061425,2.74989687,3636.5,3636.4,6.7376]
[1753346061631,2.74960946,3636.9,3636.4,11.0066]
[1753346061815,0.4293,3637.1,3636.7,0.1376]
[1753346062023,0.4293,3637.1,3636.8,4.268]
[1753346062232,2.74956338,3637.0,3636.8,4.268]
[1753346062542,3.17889443,3636.9,3636.7,0.20247408]
[1753346062854,2.74989687,3636.5,3636.4,6.7376]
[1753346063010,3.17919687,3636.5,3636.4,10.868]
[1753346063200,3.87134773,3636.5,3636.4,4.269]
[1753346063618,1.89675086,3636.5,3636.4,4.269]
[1753346063797,4.64664773,3636.5,3636.4,4.269]
[1753346065724,4.67424781,3636.5,3636.4,0.001]
[1753346065936,4.64664773,3636.5,3636.4,0.001]
[1753346067148,4.67424781,3636.5,3636.4,0.001]
[1753346067349,4.64664773,3636.5,3636.4,0.001]
[1753346067860,4.67424781,3636.5,3636.4,0.001]
[1753346068215,4.64664773,3636.5,3636.4,0.001]
[1753346069847,4.11852375,3636.2,3636.1,1e-08]
[1753346070054,8.41512383,3636.2,3636.1,1e-08]
[1753346070260,8.38752375,3636.2,3636.1,1e-08]
[1753346070423,8.81682375,3636.2,3636.1,1e-08]
[1753346070772,4.54782375,3636.2,3636.1,1e-08]
[1753346070913,10.00846928,3636.2,3636.1,1e-08]
[1753346071238,5.18846928,3636.2,3636.1,1e-08]
[1753346071429,9.45846928,3636.2,3636.1,1e-08]
[1753346071748,2.43834553,3636.2,3636.1,1e-08]
[1753346071960,2.75012375,3636.2,3636.1,1e-08]
[1753346072155,2.75005726,3636.3,3636.1,1e-08]
[1753346072361,2.75012375,3636.2,3636.1,1e-08]
[1753346072951,2.75006162,3636.3,3636.1,1e-08]
[1753346073122,2.75012375,3636.2,3636.1,1e-08]
[1753346073325,3.49862965,3636.2,3636.1,1e-08]
[1753346073946,0.7485059,3636.2,3636.1,1e-08]
[1753346074429,0.8184,3636.7,3636.1,0.45970001]
[1753346074853,2.74963969,3636.9,3636.2,2.7500616]
[1753346075059,0.7612,3637.0,3636.3,4.27]
[1753346075442,2.74989512,3636.6,3636.3,4.27]
[1753346075779,2.74990047,3636.5,3636.3,4.27]
[1753346076070,3.17914051,3636.6,3636.3,4.27]
[1753346076280,2.7499725,3636.4,3636.3,4.27]
[1753346076432,3.5103725,3636.4,3636.3,4.27]
[1753346076765,2.75012375,3636.2,3636.1,1e-08]
[1753346077273,3.32542375,3636.2,3636.1,1e-08]
[1753346077456,4.00900337,3636.2,3636.1,0.00100001]
[1753346078932,0.82117962,3636.2,3636.1,0.00100001]
[1753346079161,2.75001901,3636.4,3636.1,0.00100001]
[1753346079541,0.1376,3636.5,3636.1,0.00100001]
[1753346079836,0.1376,3636.9,3636.4,0.1376]
[1753346080031,0.7805,3637.4,3636.8,2.74962124]
[1753346080247,2.7494063,3637.2,3636.9,0.1376]
[1753346080456,2.7494063,3637.2,3637.0,4.27]
[1753346080935,2.74944323,3637.1,3637.0,4.27]
[1753346081134,3.90012987,3637.2,3637.0,4.27]
[1753346081335,0.68544393,3637.2,3637.0,4.27]
[1753346081541,2.74944323,3637.1,3637.0,4.27]
[1753346081752,2.77704331,3637.1,3637.0,4.27]
[1753346082672,2.7498603,3636.6,3636.1,0.79930001]
[1753346082879,2.7498603,3636.6,3636.1,0.00100001]
[1753346082880,0.7691,3636.6,3636.1,0.00100001]
[1753346083078,0.7691,3636.6,3636.2,4.269]
[1753346083079,3.18760895,3636.5,3636.2,4.269]
[1753346083236,0.7691,3636.6,3636.2,4.269]
[1753346083571,2.74975058,3636.7,3636.3,0.4304]
[1753346083876,2.74969678,3636.8,3636.4,1.2287]
[1753346084179,0.7691,3637.0,3636.4,1.2287]
[1753346084409,2.74952008,3637.0,3636.5,0.4304]
[1753346084610,2.74952008,3637.0,3636.4,0.7983]
[1753346084811,2.74964871,3636.9,3636.6,0.4304]
[1753346085011,2.74964871,3636.9,3636.4,0.7983]
[1753346085012,0.7691,3637.4,3636.7,4.269]
[1753346085249,2.74898665,3637.8,3637.1,2.74943612]
[1753346085513,0.54977985,3637.8,3637.3,3.0]
[1753346085686,2.74921647,3637.4,3637.3,3.0]
[1753346085892,2.74921647,3637.4,3637.3,4.269]
[1753346087320,2.74944594,3637.1,3636.8,0.7983]
[1753346087680,0.02760008,3637.1,3636.5,3.0]
[1753346087879,0.4377,3637.4,3636.5,3.0]
[1753346087880,2.74974067,3636.8,3636.7,3.0]
[1753346088094,2.74962337,3636.9,3636.7,3.0]
[1753346088282,0.4377,3637.4,3636.7,3.0]
[1753346088694,2.74929205,3637.3,3636.7,3.0]
[1753346088892,1.2653,3637.9,3636.8,0.40972085]
[1753346089096,0.02760008,3638.1,3636.9,0.8048]
[1753346089320,2.74897596,3637.8,3637.1,2.74939034]
[1753346089502,2.74901002,3637.7,3637.2,4.268]
[1753346089710,0.02760008,3637.6,3637.2,4.268]
[1753346090105,2.74929205,3637.3,3637.2,4.268]
[1753346090306,2.74872829,3638.1,3637.2,4.268]
[1753346090507,1.2653,3638.2,3637.2,4.268]
[1753346090719,2.7491153,3637.6,3637.2,4.268]
[1753346090887,3.02402683,3637.6,3637.2,4.6984]
[1753346091089,2.74914105,3637.5,3637.2,4.6984]
[1753346091629,2.74927638,3637.4,3637.2,4.6984]
[1753346091921,0.27491153,3637.6,3637.2,4.268]
[1753346092120,0.4377,3637.9,3637.2,4.268]
[1753346092300,2.74905814,3637.7,3637.2,4.268]
[1753346092625,0.4377,3637.9,3637.2,4.6984]
[1753346092811,2.74922344,3637.4,3637.2,4.6984]
[1753346093012,2.74929205,3637.3,3637.2,4.836]
[1753346093388,2.77684795,3637.4,3637.2,4.836]
[1753346093585,2.74929205,3637.3,3637.2,4.4056]
[1753346094019,2.74929205,3637.3,3637.2,4.268]
[1753346094525,0.55259248,3637.4,3637.2,4.268]
[1753346094719,2.74926224,3637.4,3637.2,4.268]
[1753346095321,2.74929205,3637.3,3637.2,4.268]
[1753346095524,2.74944323,3637.1,3636.6,0.8173]
[1753346095828,2.74970893,3636.8,3636.7,7.4056]
[1753346096196,2.74970893,3636.8,3636.7,7.268]
[1753346096520,2.74987059,3636.6,3636.1,1.21910001]
[1753346096725,2.74987059,3636.6,3636.5,0.1376]
[1753346096887,2.74987059,3636.6,3636.5,3.1376]
[1753346097090,2.74989687,3636.5,3636.4,4.268]
[1753346097301,3.34489655,3636.5,3636.4,4.268]
[1753346099025,0.42262924,3636.8,3636.4,4.6984]
[1753346099197,2.74963974,3636.9,3636.5,0.7698]
[1753346099742,0.1376,3637.0,3636.6,0.4304]
[1753346099910,0.1376,3637.0,3636.4,4.268]
[1753346099911,2.74984619,3636.6,3636.4,4.268]
[1753346100240,2.77749695,3636.5,3636.4,4.4056]
[1753346100428,2.74972788,3636.8,3636.4,4.4056]
[1753346100628,2.74965493,3636.9,3636.4,4.4056]
[1753346100829,2.74965493,3636.9,3636.4,4.836]
[1753346101128,0.1396,3637.0,3636.4,4.836]
[1753346101445,0.002,3637.0,3636.9,6.57529443]
[1753346101605,0.002,3637.0,3636.9,8.0937]
[1753346101805,0.002,3637.0,3636.9,4.2561]
[1753346102019,0.002,3637.0,3636.9,8.5241]
[1753346102348,0.002,3637.0,3636.9,11.27369443]
[1753346103445,0.002,3637.0,3636.9,15.98369442]
[1753346104160,0.002,3637.0,3636.9,13.23409999]
[1753346104525,2.75151883,3637.0,3636.9,4.267]
[1753346104737,2.74968342,3636.8,3636.5,3.8025]
[1753346104941,0.5520889,3637.0,3636.7,3.1376]
[1753346105257,0.002,3637.0,3636.8,0.4304]
[1753346105424,0.002,3637.0,3636.9,8.6257]
[1753346105630,0.002,3637.0,3636.9,8.1953]
[1753346106053,0.002,3637.0,3636.9,8.6257]
[1753346106749,0.002,3637.0,3636.9,8.1953]
[1753346108451,0.002,3637.0,3636.9,4.4046]
[1753346109228,0.002,3637.0,3636.9,4.8721]
[1753346110066,0.002,3637.0,3636.9,4.4046]
[1753346110791,0.002,3637.0,3636.9,11.42549443]
[1753346110935,0.002,3637.0,3636.9,16.13549442]
[1753346112171,0.002,3637.0,3636.9,12.91839999]
[1753346112560,0.002,3637.0,3636.9,12.11459999]
[1753346112760,0.002,3637.0,3636.9,16.12629442]
[1753346118163,0.002,3637.0,3636.9,40.79336242]
[1753346118361,0.002,3637.0,3636.9,37.04285442]
[1753346119178,0.002,3637.0,3636.9,46.12629442]
[1753346119490,0.002,3637.8,3637.7,3.52278974]
[1753346119693,0.002,3637.8,3637.7,15.49878973]
[1753346119897,0.002,3637.8,3637.7,15.63638973]
[1753346120109,0.002,3637.8,3637.7,12.11359999]
[1753346120310,0.002,3637.8,3637.7,14.86258973]
[1753346120508,0.002,3637.8,3637.7,15.33008973]
[1753346120791,0.002,3637.8,3637.7,16.10388973]
[1753346120992,0.002,3637.8,3637.7,15.63638973]
[1753346121163,0.002,3637.8,3637.7,16.10388973]
[1753346121364,0.002,3637.8,3637.7,15.63638973]
[1753346122011,0.002,3637.8,3637.7,12.11359999]
[1753346122687,0.002,3637.8,3637.7,7.84759999]
[1753346122894,3.18311417,3637.8,3637.7,9.11359999]
[1753346123210,3.88626268,3637.8,3637.7,4.70999999]
[1753346123420,3.9962626,3637.8,3637.7,8.97599999]
[1753346124312,2.74921647,3637.4,3636.8,3.0]
[1753346124537,0.02760008,3637.3,3637.1,0.1376]
[1753346124740,2.74932147,3637.3,3637.2,4.266]
[1753346124925,3.03801362,3637.3,3637.2,4.266]
[1753346125307,3.47021362,3637.3,3637.2,4.266]
[1753346125858,0.72089215,3637.3,3637.2,4.266]
[1753346126155,3.4701842,3637.3,3637.2,4.266]
[1753346127266,4.3874842,3637.3,3637.2,4.266]
[1753346129119,4.3874842,3637.3,3636.7,0.1376]
[1753346129439,2.74953957,3637.0,3636.8,4.265]
[1753346129735,0.8985485,3637.2,3636.8,4.265]
[1753346129736,3.18179443,3636.9,3636.8,4.265]
[1753346130253,0.4322,3636.9,3636.8,4.265]
[1753346130423,2.7494733,3637.1,3636.8,4.265]
[1753346130623,3.1816733,3637.1,3636.8,4.265]
[1753346130923,3.93924491,3637.1,3636.8,4.265]
[1753346131522,2.74952993,3637.0,3636.8,4.265]
[1753346131732,0.4322,3637.0,3636.8,4.265]
[1753346131903,2.74903502,3637.7,3636.9,6.21709443]
[1753346132103,0.1376,3637.6,3637.1,0.1376]
[1753346132306,2.74899942,3637.7,3637.2,4.265]
[1753346132539,2.74899942,3637.7,3637.3,0.1376]
[1753346133112,0.9522,3637.8,3637.3,0.1376]
[1753346133309,0.002,3637.8,3637.4,2.74914923]
[1753346133516,0.002,3637.8,3637.5,4.4026]
[1753346134741,0.02960008,3637.8,3637.5,4.4026]
[1753346134942,2.74906531,3637.6,3637.5,4.4026]
[1753346135249,0.002,3637.8,3637.5,4.4026]
[1753346136539,0.002,3637.8,3637.6,0.7781]
[1753346136845,0.002,3637.8,3637.7,0.1376]
[1753346142229,3.02875872,3637.8,3637.2,3.0]
[1753346142438,3.02875872,3637.8,3637.5,0.1376]
[1753346142439,3.48947782,3637.8,3637.5,0.1376]
[1753346142633,2.74911391,3637.6,3637.2,4.70999999]
[1753346142834,2.74914453,3637.5,3637.3,4.4016]
[1753346143220,2.74921647,3637.4,3637.3,4.264]
[1753346143420,2.74917454,3637.5,3637.3,4.264]
[1753346143619,3.20991647,3637.4,3637.3,4.264]
[1753346144744,2.74952596,3637.0,3636.9,0.1376]
[1753346144931,2.74952596,3637.0,3636.9,4.4016]
[1753346145130,3.23782604,3637.0,3636.9,4.4016]
[1753346145362,3.21022596,3637.0,3636.9,4.264]
[1753346145534,3.9054121,3637.0,3636.9,4.264]
[1753346145737,2.74959443,3636.9,3636.8,0.001]
[1753346145924,3.23789451,3636.9,3636.8,4.265]
[1753346146922,3.21029443,3636.9,3636.8,4.265]
[1753346147130,3.23789451,3636.9,3636.8,4.265]
[1753346147338,5.00585871,3636.9,3636.8,4.265]
[1753346147536,5.00585871,3636.9,3636.8,0.001]
[1753346147966,4.97825863,3636.9,3636.8,0.001]
[1753346148180,2.74959443,3636.9,3636.8,0.001]
[1753346148833,3.21029443,3636.9,3636.8,0.001]
[1753346150662,3.98369443,3636.9,3636.8,0.001]
[1753346151238,3.98369443,3636.9,3636.2,4.264]
[1753346151239,3.56252126,3636.6,3636.2,4.264]
[1753346151437,3.59012134,3636.6,3636.2,4.264]
[1753346151647,4.55406635,3636.6,3636.1,0.00100001]
[1753346151871,5.01476635,3636.6,3636.1,0.00100001]
[1753346152183,4.98716627,3636.6,3636.1,0.00100001]
[1753346152378,3.71376627,3636.6,3636.1,0.00100001]
[1753346152683,4.17446627,3636.6,3636.1,0.00100001]
[1753346152989,0.96394501,3636.6,3636.1,0.00100001]
[1753346153151,0.4607,3637.0,3636.1,0.00100001]
[1753346153477,2.74972018,3636.8,3636.2,2.75012211]
[1753346153689,2.74925031,3637.4,3636.6,0.7701]
[1753346153690,2.74935261,3637.3,3636.6,0.7701]
[1753346153894,0.7861,3637.7,3636.7,0.4314]
[1753346154038,0.002,3637.8,3636.8,0.7701]
[1753346154245,0.002,3637.8,3637.3,2.74928537]
[1753346154439,0.27508517,3637.7,3637.4,4.264]
[1753346154691,0.002,3637.8,3637.5,1.2491]
[1753346155569,0.002,3637.8,3636.6,0.8283]
[1753346155902,2.74905668,3637.7,3637.0,3.0]
[1753346156112,2.74907774,3637.6,3637.0,3.0]
[1753346156595,2.74898974,3637.7,3637.1,0.4314]
[1753346156755,2.74907346,3637.6,3637.2,5.0561]
[1753346156957,2.74901037,3637.7,3637.2,5.4875]
[1753346157157,2.74901037,3637.7,3637.0,2.74949259]
[1753346157158,2.74982126,3636.6,3636.1,0.00100001]
[1753346157599,2.88742126,3636.6,3636.1,0.00100001]
[1753346159172,3.37572134,3636.6,3636.1,0.00100001]
[1753346159565,3.92572134,3636.6,3636.1,0.00100001]
[1753346159798,4.73402504,3636.6,3636.1,0.00100001]
[1753346161527,3.72332504,3636.6,3636.1,0.00100001]
[1753346161729,0.1376,3636.6,3636.2,3.1814944]
[1753346161933,0.7565,3637.4,3636.6,0.8274]
[1753346162116,2.74900828,3637.7,3637.1,0.1376]
[1753346162433,0.02760008,3637.6,3637.1,4.4016]
[1753346162617,0.1376,3637.5,3637.1,4.264]
[1753346162818,2.74930216,3637.3,3637.1,4.264]
[1753346163899,0.1376,3637.5,3637.1,4.264]
[1753346164125,2.74926612,3637.4,3637.1,4.264]
[1753346164429,2.74926612,3637.4,3637.1,4.6954]
[1753346164595,2.74908593,3637.6,3637.2,0.4314]
[1753346164795,2.74898974,3637.7,3637.3,0.1376]
[1753346165022,2.74921647,3637.4,3637.3,0.1376]
[1753346165327,0.02760008,3637.4,3637.3,0.1376]
[1753346165530,2.77681655,3637.4,3637.3,0.1376]
[1753346166095,2.74913618,3637.6,3637.3,4.833]
[1753346166329,2.74921647,3637.4,3637.3,0.1376]
[1753346166508,2.74921647,3637.4,3637.3,4.4016]
[1753346166708,2.74921647,3637.4,3636.9,0.4314]
[1753346166709,2.74929205,3637.3,3637.2,4.264]
[1753346167522,2.74937271,3637.2,3637.1,4.264]
[1753346168232,2.74929205,3637.3,3636.9,0.1376]
[1753346168731,0.1376,3637.4,3636.9,0.1376]
[1753346168732,2.88683783,3637.4,3636.9,0.1376]
[1753346168936,2.88683783,3637.4,3637.0,0.4518]
[1753346169431,0.1376,3637.4,3637.1,4.264]
[1753346169638,0.1376,3637.4,3637.1,4.8534]
[1753346169639,2.74927409,3637.4,3637.1,4.8534]
[1753346170040,0.1376,3637.6,3637.1,4.8534]
[1753346170411,0.1376,3637.6,3637.2,0.4518]
[1753346170627,0.002,3637.8,3637.3,4.7158]
[1753346170818,0.002,3637.8,3637.5,0.7708]
[1753346171337,0.002,3637.8,3637.5,1.2226]
[1753346171536,2.75095965,3637.8,3637.5,1.2226]
[1753346171740,2.75095965,3637.8,3637.6,4.264]
[1753346173035,2.75093177,3637.8,3637.7,4.263]
[1753346174536,0.002,3637.8,3637.7,4.263]
[1753346174913,2.75091417,3637.8,3637.5,0.7708]
[1753346175117,2.74898974,3637.7,3637.6,4.263]
[1753346175423,2.75094047,3637.8,3637.6,4.263]
[1753346175832,0.002,3637.8,3637.6,4.263]
[1753346176605,2.74898974,3637.7,3637.6,4.263]
[1753346177347,0.002,3637.8,3637.6,4.263]
[1753346177511,2.74898974,3637.7,3637.6,4.263]
[1753346177925,2.75094595,3637.8,3637.6,4.263]
[1753346178130,2.74900126,3637.7,3637.6,4.263]
[1753346179025,1.05644533,3637.7,3637.6,4.263]
[1753346179226,2.74906531,3637.6,3637.4,4.263]
[1753346179430,2.88674089,3637.5,3637.4,4.263]
[1753346180410,0.1376,3637.5,3637.4,4.263]
[1753346180614,2.88674089,3637.5,3637.4,4.263]
[1753346181416,3.89591711,3637.5,3637.4,4.263]
[1753346181617,3.45051711,3637.5,3637.4,4.263]
[1753346181830,2.88674089,3637.5,3637.4,4.263]
[1753346184967,2.74922813,3637.4,3636.9,0.4518]
[1753346185166,0.02760008,3637.3,3637.0,4.263]
[1753346185587,2.74936764,3637.2,3637.1,4.263]
[1753346185949,2.77696772,3637.2,3637.1,4.263]
[1753346186493,0.02760008,3637.2,3637.1,4.263]
[1753346186790,2.74936764,3637.2,3637.1,4.263]
[1753346186990,2.77696772,3637.2,3637.1,4.263]
[1753346187349,2.75095819,3637.8,3637.1,4.263]
[1753346187350,0.002,3637.8,3637.1,4.263]
[1753346187550,2.7491806,3637.5,3637.1,4.7148]
[1753346187786,2.7491806,3637.5,3637.2,0.4518]
[1753346188159,2.77682575,3637.4,3637.1,4.263]
[1753346188359,2.74941522,3637.2,3636.9,0.20180768]
[1753346188591,0.02760008,3637.1,3636.6,0.4528]
[1753346188894,2.74974564,3636.7,3636.6,0.001]
[1753346189205,2.77734572,3636.7,3636.6,0.001]
[1753346189358,3.19514564,3636.7,3636.6,0.001]
[1753346189959,3.22274572,3636.7,3636.6,0.001]
[1753346191082,4.57467973,3636.7,3636.6,0.001]
[1753346191877,5.12467973,3636.7,3636.6,0.001]
[1753346193876,5.09707965,3636.7,3636.6,0.001]
[1753346194301,2.74968036,3636.8,3636.6,0.001]
[1753346195397,2.7496484,3636.9,3636.6,0.001]
[1753346195596,0.7951,3637.1,3636.6,0.001]
[1753346195797,0.7951,3637.1,3636.6,4.263]
[1753346195988,2.74967452,3636.8,3636.6,4.263]
[1753346196188,2.7496065,3636.9,3636.6,4.263]
[1753346196388,2.74968682,3636.8,3636.6,4.263]
[1753346196703,2.74974564,3636.7,3636.6,4.263]
[1753346196923,3.77268001,3636.7,3636.6,0.001]
[1753346197064,5.11067993,3636.7,3636.6,0.001]
[1753346197282,5.13828001,3636.7,3636.6,0.001]
[1753346197605,5.27588001,3636.7,3636.6,0.001]
[1753346197805,5.24827993,3636.7,3636.6,0.001]
[1753346198406,3.43727993,3636.7,3636.6,0.001]
[1753346198705,3.91147993,3636.7,3636.6,0.001]
[1753346199014,4.48908001,3636.7,3636.6,0.001]
[1753346199315,5.32218001,3636.7,3636.6,0.001]
[1753346200081,5.29457993,3636.7,3636.6,0.001]